fUSD/lending_fUSD_20250602
["ID","MTS","AMOUNT","RATE_DAILY","PERIOD"]
[363863051,1748904650827,-460.0,0.00038904,6]
[363863052,1748904650837,-460.0,0.00038904,6]
[363863053,1748904650846,-753.84,0.00038904,6]
[363863054,1748904650856,-271.14763588,0.00038904,6]
[363863055,1748904650866,-460.0,0.00038904,6]
[363863056,1748904650876,-460.0,0.00038904,6]
[363863057,1748904650886,-1247.64,0.00038904,6]
[363863058,1748904650896,-460.0,0.00038904,6]
[363863059,1748904650906,-460.0,0.00038904,6]
[363863060,1748904650915,-519.61,0.00038904,6]
[363863061,1748904650925,-460.0,0.00038904,6]
[363863062,1748904650935,-340.0,0.00038904,6]
[363863063,1748904650946,-340.0,0.00038904,6]
[363863064,1748904650955,-460.0,0.00038904,6]
[363863065,1748904650965,-485.01,0.00038904,6]
[363863066,1748904650975,-347.49843851,0.00038904,6]
[363863067,1748904650984,-791.69,0.00038904,6]
[363863068,1748904650994,-460.0,0.00038904,6]
[363863069,1748904651004,-765.94,0.00038904,6]
[363863070,1748904651014,-460.0,0.00038904,6]
[363863071,1748904651023,-460.0,0.00038904,6]
[363863072,1748904651032,-460.0,0.00038904,6]
[363863073,1748904651042,-711.627085,0.00038904,6]
[363863074,1748904651054,-500.0,0.00038921,5]
[363863075,1748904651066,-1000.0,0.00038921,5]
[363863076,1748904651077,-500.0,0.00038921,5]
[363863077,1748904651086,-1000.0,0.00038921,5]
[363863078,1748904651097,-4218.82154408,0.00038937,4]
[363863079,1748904651384,-150.0,0.00038937,7]
[363863080,1748904651395,-150.0,0.00038937,7]
[363863081,1748904651404,-150.0,0.00038937,7]
[363863082,1748904651418,-150.0,0.00038937,7]
[363863083,1748904651429,-234.60072024,0.00038939,14]
[363863084,1748904651439,-7685.79604369,0.0003899,4]
[363863085,1748904651450,-4218.82154408,0.0003899,4]
[363863086,1748904651461,-14000.0,0.00039,120]
[363863087,1748904651472,-626.16,0.00039054,2]
[363863088,1748904651482,-150.0,0.00039061,2]
[363863089,1748904651492,-747.80285252,0.00039078,2]
[363863090,1748904651503,-676.1917,0.0003908,2]
[363863091,1748904651513,-4218.82154408,0.00039086,4]
[363863092,1748904651523,-806.93,0.00039096,2]
[363863093,1748904651533,-130658.532743,0.00039168,4]
[363863094,1748904651543,-25312.9292645,0.00039168,4]
[363863095,1748904651553,-152.39521258,0.00039168,2]
[363863096,1748904651563,-1044.12716,0.0003917,2]
[363863097,1748904651574,-30743.1841748,0.0003917,4]
[363863098,1748904651584,-500.0,0.00039173,5]
[363863099,1748904651594,-150.0,0.00039177,2]
[363863100,1748904651606,-460.0,0.00039178,6]
[363863101,1748904651617,-460.0,0.00039178,6]
[363863102,1748904651627,-420.0,0.00039178,6]
[363863103,1748904651637,-790.55,0.00039178,6]
[363863104,1748904651647,-1040.53,0.00039178,6]
[363863105,1748904651657,-719.75,0.00039178,6]
[363863106,1748904651667,-460.0,0.00039178,6]
[363863107,1748904651676,-460.0,0.00039178,6]
[363863108,1748904651687,-460.0,0.00039178,6]
[363863109,1748904651698,-460.0,0.00039178,6]
[363863110,1748904651708,-460.0,0.00039178,6]
[363863111,1748904651718,-460.0,0.00039178,6]
[363863112,1748904651727,-722.99,0.00039178,6]
[363863113,1748904651736,-460.0,0.00039178,2]
[363863114,1748904651746,-757.63,0.00039178,6]
[363863115,1748904651756,-836.91,0.00039178,6]
[363863116,1748904651765,-426.47732297,0.00039178,6]
[363863117,1748904651775,-758.64,0.00039178,6]
[363863118,1748904651785,-460.0,0.00039178,6]
[363863119,1748904651795,-460.0,0.00039178,6]
[363863120,1748904651804,-507.42,0.00039178,6]
[363863121,1748904651814,-1127.48,0.00039178,6]
[363863122,1748904651825,-460.0,0.00039178,6]
[363863123,1748904651835,-480.79,0.00039178,6]
[363863124,1748904651844,-1170.16,0.00039178,6]
[363863125,1748904651854,-460.0,0.00039178,6]
[363863126,1748904651864,-538.2,0.00039178,6]
[363863127,1748904651874,-460.0,0.00039178,6]
[363863128,1748904651883,-460.0,0.00039178,6]
[363863129,1748904651893,-460.0,0.00039178,6]
[363863130,1748904651903,-460.0,0.00039178,6]
[363863131,1748904651913,-300.0,0.00039178,6]
[363863132,1748904651923,-460.0,0.00039178,6]
[363863133,1748904651933,-460.0,0.00039178,6]
[363863134,1748904651943,-1044.63,0.00039178,6]
[363863135,1748904651953,-460.0,0.00039178,6]
[363863136,1748904651963,-460.0,0.00039178,6]
[363863137,1748904651973,-460.0,0.00039178,6]
[363863138,1748904651982,-460.0,0.00039178,6]
[363863139,1748904651991,-460.0,0.00039178,6]
[363863140,1748904652001,-460.0,0.00039178,6]
[363863141,1748904652011,-460.0,0.00039178,6]
[363863142,1748904652020,-460.0,0.00039178,6]
[363863143,1748904652030,-762.85,0.00039178,6]
[363863144,1748904652039,-460.0,0.00039178,6]
[363863145,1748904652049,-1190.35,0.00039178,6]
[363863146,1748904652059,-460.0,0.00039178,6]
[363863147,1748904652068,-460.0,0.00039178,6]
[363863148,1748904652078,-2169.71,0.00039178,6]
[363863149,1748904652088,-331.59646533,0.00039178,6]
[363863150,1748904652097,-460.0,0.00039178,6]
[363863151,1748904652107,-460.0,0.00039178,6]
[363863152,1748904652116,-460.0,0.00039178,6]
[363863153,1748904652126,-837.97,0.00039178,6]
[363863154,1748904652135,-460.0,0.00039178,6]
[363863155,1748904652145,-460.0,0.00039178,6]
[363863156,1748904652155,-460.0,0.00039178,6]
[363863157,1748904652164,-460.0,0.00039178,6]
[363863158,1748904652173,-460.0,0.00039178,6]
[363863159,1748904652184,-460.0,0.00039178,6]
[363863160,1748904652195,-479.44,0.00039178,6]
[363863161,1748904652207,-460.0,0.00039178,6]
[363863162,1748904652217,-460.0,0.00039178,6]
[363863163,1748904652226,-300.0,0.00039178,6]
[363863164,1748904652236,-1467.29,0.00039178,6]
[363863165,1748904652245,-518.59,0.00039178,6]
[363863166,1748904652257,-460.0,0.00039178,6]
[363863167,1748904652267,-496.4,0.00039178,6]
[363863168,1748904652278,-460.0,0.00039178,6]
[363863169,1748904652287,-319.36498286,0.00039178,6]
[363863170,1748904652296,-460.0,0.00039178,6]
[363863171,1748904652306,-460.0,0.00039178,6]
[363863172,1748904652316,-460.0,0.00039178,6]
[363863173,1748904652327,-460.0,0.00039178,6]
[363863174,1748904652336,-395.10192209,0.00039178,6]
[363863175,1748904652346,-493.42,0.00039178,6]
[363863176,1748904652356,-460.0,0.00039178,6]
[363863177,1748904652366,-300.0,0.00039178,6]
[363863178,1748904652375,-605.92,0.00039178,6]
[363863179,1748904652384,-460.0,0.00039178,6]
[363863180,1748904652393,-460.0,0.00039178,6]
[363863181,1748904652403,-460.0,0.00039178,6]
[363863182,1748904652412,-460.0,0.00039178,6]
[363863183,1748904652421,-460.0,0.00039178,6]
[363863184,1748904652432,-460.0,0.00039178,6]
[363863185,1748904652443,-460.0,0.00039178,6]
[363863186,1748904652454,-460.0,0.00039178,6]
[363863187,1748904652464,-513.81,0.00039178,6]
[363863188,1748904652475,-460.0,0.00039178,6]
[363863189,1748904652486,-1337.37,0.00039178,6]
[363863190,1748904652495,-598.08,0.00039178,6]
[363863191,1748904652505,-460.0,0.00039178,6]
[363863192,1748904652514,-460.0,0.00039178,6]
[363863193,1748904652524,-171.27842631,0.00039178,6]
[363863194,1748904652534,-460.0,0.00039178,6]
[363863195,1748904652543,-801.08,0.00039178,6]
[363863196,1748904652553,-733.24,0.00039178,6]
[363863197,1748904652563,-709.69,0.00039178,6]
[363863198,1748904652574,-460.0,0.00039178,6]
[363863199,1748904652584,-460.0,0.00039178,6]
[363863200,1748904652593,-460.0,0.00039178,6]
[363863201,1748904652604,-460.0,0.00039178,6]
[363863202,1748904652615,-260.3298695,0.00039178,6]
[363863203,1748904652625,-517.7,0.00039178,6]
[363863204,1748904652635,-460.0,0.00039178,6]
[363863205,1748904652644,-418.30967895,0.00039178,6]
[363863206,1748904652653,-300.7696468,0.00039178,6]
[363863207,1748904652663,-460.0,0.00039178,6]
[363863208,1748904652672,-460.0,0.00039178,6]
[363863209,1748904652682,-472.05,0.00039178,6]
[363863210,1748904652693,-460.0,0.00039178,6]
[363863211,1748904652703,-460.0,0.00039178,6]
[363863212,1748904652712,-460.0,0.00039178,6]
[363863213,1748904652723,-460.0,0.00039178,6]
[363863214,1748904652732,-1511.1,0.00039178,6]
[363863215,1748904652741,-460.0,0.00039178,6]
[363863216,1748904652751,-712.56,0.00039178,6]
[363863217,1748904652761,-460.0,0.00039178,6]
[363863218,1748904652771,-300.0,0.00039178,6]
[363863219,1748904652780,-460.0,0.00039178,6]
[363863220,1748904652791,-597.44,0.00039178,6]
[363863221,1748904652800,-300.0,0.00039178,6]
[363863222,1748904652810,-460.0,0.00039178,6]
[363863223,1748904652822,-460.0,0.00039178,6]
[363863224,1748904652831,-460.0,0.00039178,6]
[363863225,1748904652841,-460.0,0.00039178,6]
[363863226,1748904652850,-460.0,0.00039178,6]
[363863227,1748904652859,-960.28,0.00039178,6]
[363863228,1748904652869,-324.73297156,0.00039178,6]
[363863229,1748904652878,-460.0,0.00039178,6]
[363863230,1748904652887,-460.0,0.00039178,6]
[363863231,1748904652899,-313.04202425,0.00039178,6]
[363863232,1748904652910,-460.0,0.00039178,6]
[363863233,1748904652920,-460.0,0.00039178,6]
[363863234,1748904652930,-460.0,0.00039178,6]
[363863235,1748904652940,-460.0,0.00039178,6]
[363863236,1748904652949,-460.0,0.00039178,6]
[363863237,1748904652959,-753.84,0.00039178,6]
[363863238,1748904652971,-460.0,0.00039178,6]
[363863239,1748904652981,-460.0,0.00039178,6]
[363863240,1748904652990,-460.0,0.00039178,6]
[363863241,1748904653000,-460.0,0.00039178,6]
[363863242,1748904653009,-1247.64,0.00039178,6]
[363863243,1748904653019,-460.0,0.00039178,6]
[363863244,1748904653030,-460.0,0.00039178,6]
[363863245,1748904653039,-519.61,0.00039178,6]
[363863246,1748904653049,-422.31518913,0.00039178,6]
[363863247,1748904653059,-460.0,0.00039178,6]
[363863248,1748904653069,-485.01,0.00039178,6]
[363863249,1748904653078,-791.69,0.00039178,6]
[363863250,1748904653088,-460.0,0.00039178,6]
[363863251,1748904653097,-765.94,0.00039178,6]
[363863252,1748904653107,-460.0,0.00039178,6]
[363863253,1748904653116,-460.0,0.00039178,6]
[363863254,1748904653125,-300.0,0.00039178,6]
[363863255,1748904653135,-711.627085,0.00039178,6]
[363863256,1748904653144,-65213.1998952,0.0003918,2]
[363863257,1748904653154,-8383.66099999,0.0003918,2]
[363863258,1748904653163,-842.77869614,0.00039198,2]
[363863259,1748904653172,-738.42139,0.000392,20]
[363863260,1748904653182,-7685.79604369,0.00039211,4]
[363863261,1748904653191,-500.0,0.00039221,5]
[363863262,1748904653200,-500.0,0.00039221,5]
[363863263,1748904653209,-500.0,0.00039221,5]
[363863264,1748904653219,-500.0,0.00039221,5]
[363863265,1748904653228,-150.0,0.0003923,7]
[363863266,1748904653237,-3000.0,0.00039248,31]
[363863267,1748904653247,-1451.0,0.00039283,20]
[363863268,1748904653256,-747.80285252,0.00039352,2]
[363863269,1748904653265,-99915.348568,0.00039442,4]
[363863270,1748904653275,-460.0,0.00039452,6]
[363863271,1748904653284,-460.0,0.00039452,6]
[363863272,1748904653293,-790.55,0.00039452,6]
[363863273,1748904653303,-1040.53,0.00039452,6]
[363863274,1748904653312,-719.75,0.00039452,6]
[363863275,1748904653323,-460.0,0.00039452,6]
[363863276,1748904653332,-460.0,0.00039452,6]
[363863277,1748904653342,-171.47178311,0.00039452,6]
[363863278,1748904653351,-460.0,0.00039452,6]
[363863279,1748904653360,-460.0,0.00039452,6]
[363863280,1748904653370,-340.0,0.00039452,6]
[363863281,1748904653380,-460.0,0.00039452,2]
[363863282,1748904653389,-722.99,0.00039452,6]
[363863283,1748904653399,-757.63,0.00039452,6]
[363863284,1748904653408,-836.91,0.00039452,6]
[363863285,1748904653418,-758.64,0.00039452,6]
[363863286,1748904653428,-460.0,0.00039452,6]
[363863287,1748904653437,-460.0,0.00039452,6]
[363863288,1748904653447,-507.42,0.00039452,6]
[363863289,1748904653456,-1127.48,0.00039452,6]
[363863290,1748904653467,-460.0,0.00039452,6]
[363863291,1748904653477,-480.79,0.00039452,6]
[363863292,1748904653486,-1170.16,0.00039452,6]
[363863293,1748904653495,-460.0,0.00039452,6]
[363863294,1748904653505,-538.2,0.00039452,6]
[363863295,1748904653514,-460.0,0.00039452,6]
[363863296,1748904653524,-460.0,0.00039452,6]
[363863297,1748904653534,-460.0,0.00039452,6]
[363863298,1748904653543,-460.0,0.00039452,6]
[363863299,1748904653553,-460.0,0.00039452,6]
[363863300,1748904653563,-460.0,0.00039452,6]
[363863301,1748904653573,-1044.63,0.00039452,6]
[363863302,1748904653583,-460.0,0.00039452,6]
[363863303,1748904653592,-460.0,0.00039452,6]
[363863304,1748904653602,-606.79758516,0.00039452,6]
[363863305,1748904653615,-460.0,0.00039452,6]
[363863306,1748904653624,-460.0,0.00039452,6]
[363863307,1748904653635,-460.0,0.00039452,6]
[363863308,1748904653645,-460.0,0.00039452,6]
[363863309,1748904653655,-460.0,0.00039452,6]
[363863310,1748904653664,-762.85,0.00039452,6]
[363863311,1748904653674,-460.0,0.00039452,6]
[363863312,1748904653686,-1190.35,0.00039452,6]
[363863313,1748904653695,-190.61704494,0.00039452,6]
[363863314,1748904653706,-345.23358556,0.00039452,6]
[363863315,1748904653715,-2169.71,0.00039452,6]
[363863316,1748904653727,-460.0,0.00039452,6]
[363863317,1748904653737,-460.0,0.00039452,6]
[363863318,1748904653747,-460.0,0.00039452,6]
[363863319,1748904653756,-837.97,0.00039452,6]
[363863320,1748904653766,-460.0,0.00039452,6]
[363863321,1748904653776,-460.0,0.00039452,6]
[363863322,1748904653786,-460.0,0.00039452,6]
[363863323,1748904653797,-460.0,0.00039452,6]
[363863324,1748904653807,-460.0,0.00039452,6]
[363863325,1748904653820,-460.0,0.00039452,6]
[363863326,1748904653829,-479.44,0.00039452,6]
[363863327,1748904653839,-460.0,0.00039452,6]
[363863328,1748904653849,-460.0,0.00039452,6]
[363863329,1748904653860,-1467.29,0.00039452,6]
[363863330,1748904653870,-518.59,0.00039452,6]
[363863331,1748904653880,-460.0,0.00039452,6]
[363863332,1748904653891,-496.4,0.00039452,6]
[363863333,1748904653901,-460.0,0.00039452,6]
[363863334,1748904653912,-215.36394672,0.00039452,6]
[363863335,1748904653921,-260.0,0.00039452,6]
[363863336,1748904653932,-460.0,0.00039452,6]
[363863337,1748904653942,-460.0,0.00039452,6]
[363863338,1748904653953,-493.42,0.00039452,6]
[363863339,1748904653964,-428.05604735,0.00039452,6]
[363863340,1748904653974,-605.92,0.00039452,6]
[363863341,1748904653983,-268.7086029,0.00039452,6]
[363863342,1748904653993,-460.0,0.00039452,6]
[363863343,1748904654003,-460.0,0.00039452,6]
[363863344,1748904654013,-460.0,0.00039452,6]
[363863345,1748904654023,-460.0,0.00039452,6]
[363863346,1748904654033,-460.0,0.00039452,6]
[363863347,1748904654042,-460.0,0.00039452,6]
[363863348,1748904654051,-513.81,0.00039452,6]
[363863349,1748904654061,-460.0,0.00039452,6]
[363863350,1748904654073,-460.0,0.00039452,6]
[363863351,1748904654083,-1337.37,0.00039452,6]
[363863352,1748904654093,-598.08,0.00039452,6]
[363863353,1748904654103,-460.0,0.00039452,6]
[363863354,1748904654112,-460.0,0.00039452,6]
[363863355,1748904654122,-460.0,0.00039452,6]
[363863356,1748904654133,-801.08,0.00039452,6]
[363863357,1748904654142,-733.24,0.00039452,6]
[363863358,1748904654152,-709.69,0.00039452,6]
[363863359,1748904654161,-460.0,0.00039452,6]
[363863360,1748904654171,-600.34112724,0.00039452,6]
[363863361,1748904654180,-460.0,0.00039452,6]
[363863362,1748904654190,-460.0,0.00039452,6]
[363863363,1748904654200,-517.7,0.00039452,6]
[363863364,1748904654210,-460.0,0.00039452,6]
[363863365,1748904654219,-460.0,0.00039452,6]
[363863366,1748904654229,-460.0,0.00039452,6]
[363863367,1748904654238,-472.05,0.00039452,6]
[363863368,1748904654248,-460.0,0.00039452,6]
[363863369,1748904654257,-460.0,0.00039452,6]
[363863370,1748904654267,-460.0,0.00039452,6]
[363863371,1748904654276,-460.0,0.00039452,6]
[363863372,1748904654286,-1511.1,0.00039452,6]
[363863373,1748904654295,-460.0,0.00039452,6]
[363863374,1748904654305,-712.56,0.00039452,6]
[363863375,1748904654315,-460.0,0.00039452,6]
[363863376,1748904654324,-460.0,0.00039452,6]
[363863377,1748904654334,-597.44,0.00039452,6]
[363863378,1748904654344,-460.0,0.00039452,6]
[363863379,1748904654353,-460.0,0.00039452,6]
[363863380,1748904654363,-260.0,0.00039452,6]
[363863381,1748904654372,-460.0,0.00039452,6]
[363863382,1748904654382,-460.0,0.00039452,6]
[363863383,1748904654392,-960.28,0.00039452,6]
[363863384,1748904654402,-460.0,0.00039452,6]
[363863385,1748904654411,-460.0,0.00039452,6]
[363863386,1748904654421,-460.0,0.00039452,6]
[363863387,1748904654431,-460.0,0.00039452,6]
[363863388,1748904654440,-460.0,0.00039452,6]
[363863389,1748904654451,-460.0,0.00039452,6]
[363863390,1748904654461,-460.0,0.00039452,6]
[363863391,1748904654471,-753.84,0.00039452,6]
[363863392,1748904654481,-460.0,0.00039452,6]
[363863393,1748904654491,-460.0,0.00039452,6]
[363863394,1748904654501,-460.0,0.00039452,6]
[363863395,1748904654511,-460.0,0.00039452,6]
[363863396,1748904654521,-1247.64,0.00039452,6]
[363863397,1748904654531,-460.0,0.00039452,6]
[363863398,1748904654541,-460.0,0.00039452,6]
[363863399,1748904654550,-519.61,0.00039452,6]
[363863400,1748904654560,-540.0,0.00039452,6]
[363863401,1748904654569,-485.01,0.00039452,6]
[363863402,1748904654578,-791.69,0.00039452,6]
[363863403,1748904654588,-460.0,0.00039452,6]
[363863404,1748904654598,-765.94,0.00039452,6]
[363863405,1748904654608,-460.0,0.00039452,6]
[363863406,1748904654619,-460.0,0.00039452,6]
[363863407,1748904654629,-711.627085,0.00039452,6]
[363863408,1748904654639,-300.0,0.00039452,2]
[363863409,1748904654649,-500.0,0.0003957,2]
[363863410,1748904654659,-150.0,0.0003962,7]
[363863411,1748904654668,-150.0,0.0003962,7]
[363863412,1748904654678,-747.80285252,0.00039626,2]
[363863413,1748904654687,-1451.0,0.00039684,20]
[363863414,1748904654696,-460.0,0.00039726,6]
[363863415,1748904654706,-460.0,0.00039726,6]
[363863416,1748904654715,-790.55,0.00039726,6]
[363863417,1748904654725,-1040.53,0.00039726,6]
[363863418,1748904654735,-719.75,0.00039726,6]
[363863419,1748904654744,-473.69820082,0.00039726,6]
[363863420,1748904654755,-460.0,0.00039726,6]
[363863421,1748904654764,-460.0,0.00039726,6]
[363863422,1748904654774,-460.0,0.00039726,6]
[363863423,1748904654784,-460.0,0.00039726,2]
[363863424,1748904654793,-722.99,0.00039726,6]
[363863425,1748904654803,-757.63,0.00039726,6]
[363863426,1748904654812,-836.91,0.00039726,6]
[363863427,1748904654822,-758.64,0.00039726,6]
[363863428,1748904654831,-460.0,0.00039726,6]
[363863429,1748904654840,-460.0,0.00039726,6]
[363863430,1748904655041,-507.42,0.00039726,6]
[363863431,1748904655052,-1127.48,0.00039726,6]
[363863432,1748904655061,-220.0,0.00039726,6]
[363863433,1748904655072,-480.79,0.00039726,6]
[363863434,1748904655082,-1170.16,0.00039726,6]
[363863435,1748904655092,-460.0,0.00039726,6]
[363863436,1748904655102,-538.2,0.00039726,6]
[363863437,1748904655112,-220.0,0.00039726,6]
[363863438,1748904655122,-460.0,0.00039726,6]
[363863439,1748904655131,-460.0,0.00039726,6]
[363863440,1748904655139,-460.0,0.00039726,6]
[363863441,1748904655147,-460.0,0.00039726,6]
[363863442,1748904655155,-460.0,0.00039726,6]
[363863443,1748904655165,-1044.63,0.00039726,6]
[363863444,1748904655174,-460.0,0.00039726,6]
[363863445,1748904655183,-460.0,0.00039726,6]
[363863446,1748904655191,-460.0,0.00039726,6]
[363863447,1748904655199,-460.0,0.00039726,6]
[363863448,1748904655208,-460.0,0.00039726,6]
[363863449,1748904655217,-460.0,0.00039726,6]
[363863450,1748904655226,-315.4598142,0.00039726,6]
[363863451,1748904655235,-762.85,0.00039726,6]
[363863452,1748904655243,-460.0,0.00039726,6]
[363863453,1748904655252,-1190.35,0.00039726,6]
[363863454,1748904655260,-2169.71,0.00039726,6]
[363863455,1748904655268,-460.0,0.00039726,6]
[363863456,1748904655276,-460.0,0.00039726,6]
[363863457,1748904655285,-460.0,0.00039726,6]
[363863458,1748904655293,-837.97,0.00039726,6]
[363863459,1748904655302,-460.0,0.00039726,6]
[363863460,1748904655311,-460.0,0.00039726,6]
[363863461,1748904655319,-460.0,0.00039726,6]
[363863462,1748904655328,-460.0,0.00039726,6]
[363863463,1748904655336,-222.02873999,0.00039726,6]
[363863464,1748904655345,-460.0,0.00039726,6]
[363863465,1748904655354,-479.44,0.00039726,6]
[363863466,1748904655362,-460.0,0.00039726,6]
[363863467,1748904655372,-460.0,0.00039726,6]
[363863468,1748904655382,-1467.29,0.00039726,6]
[363863469,1748904655391,-518.59,0.00039726,6]
[363863470,1748904655400,-460.0,0.00039726,6]
[363863471,1748904655410,-496.4,0.00039726,6]
[363863472,1748904655420,-460.0,0.00039726,6]
[363863473,1748904655430,-460.0,0.00039726,6]
[363863474,1748904655440,-460.0,0.00039726,6]
[363863475,1748904655450,-493.42,0.00039726,6]
[363863476,1748904655460,-605.92,0.00039726,6]
[363863477,1748904655470,-460.0,0.00039726,6]
[363863478,1748904655480,-460.0,0.00039726,6]
[363863479,1748904655490,-224.45795777,0.00039726,6]
[363863480,1748904655501,-460.0,0.00039726,6]
[363863481,1748904655511,-409.75173045,0.00039726,6]
[363863482,1748904655521,-460.0,0.00039726,6]
[363863483,1748904655531,-513.81,0.00039726,6]
[363863484,1748904655541,-391.88695152,0.00039726,6]
[363863485,1748904655551,-460.0,0.00039726,6]
[363863486,1748904655562,-1337.37,0.00039726,6]
[363863487,1748904655573,-598.08,0.00039726,6]
[363863488,1748904655585,-460.0,0.00039726,6]
[363863489,1748904655594,-460.0,0.00039726,6]
[363863490,1748904655605,-460.0,0.00039726,6]
[363863491,1748904655618,-733.24,0.00039726,6]
[363863492,1748904655628,-801.08,0.00039726,6]
[363863493,1748904655638,-709.69,0.00039726,6]
[363863494,1748904655648,-460.0,0.00039726,6]
[363863495,1748904655659,-460.0,0.00039726,6]
[363863496,1748904655669,-220.0,0.00039726,6]
[363863497,1748904655678,-517.7,0.00039726,6]
[363863498,1748904655689,-460.0,0.00039726,6]
[363863499,1748904655698,-460.0,0.00039726,6]
[363863500,1748904655708,-223.05078825,0.00039726,6]
[363863501,1748904655718,-472.05,0.00039726,6]
[363863502,1748904655728,-268.21,0.00039726,6]
[363863503,1748904655738,-460.0,0.00039726,6]
[363863504,1748904655748,-460.0,0.00039726,6]
[363863505,1748904655758,-460.0,0.00039726,6]
[363863506,1748904655767,-1511.1,0.00039726,6]
[363863507,1748904655777,-460.0,0.00039726,6]
[363863508,1748904655787,-712.56,0.00039726,6]
[363863509,1748904655797,-460.0,0.00039726,6]
[363863510,1748904655807,-460.0,0.00039726,6]
[363863511,1748904655817,-597.44,0.00039726,6]
[363863512,1748904655832,-460.0,0.00039726,6]
[363863513,1748904655842,-331.6304699,0.00039726,6]
[363863514,1748904655852,-460.0,0.00039726,6]
[363863515,1748904655862,-460.0,0.00039726,6]
[363863516,1748904655872,-960.28,0.00039726,6]
[363863517,1748904655882,-460.0,0.00039726,6]
[363863518,1748904655892,-460.0,0.00039726,6]
[363863519,1748904655902,-460.0,0.00039726,6]
[363863520,1748904655912,-460.0,0.00039726,6]
[363863521,1748904655922,-460.0,0.00039726,6]
[363863522,1748904655932,-460.0,0.00039726,6]
[363863523,1748904655942,-460.0,0.00039726,6]
[363863524,1748904655952,-460.0,0.00039726,6]
[363863525,1748904655962,-753.84,0.00039726,6]
[363863526,1748904655972,-460.0,0.00039726,6]
[363863527,1748904655982,-460.0,0.00039726,6]
[363863528,1748904655992,-460.0,0.00039726,6]
[363863529,1748904656002,-1247.64,0.00039726,6]
[363863530,1748904656012,-460.0,0.00039726,6]
[363863531,1748904656021,-460.0,0.00039726,6]
[363863532,1748904656031,-519.61,0.00039726,6]
[363863533,1748904656040,-485.01,0.00039726,6]
[363863534,1748904656050,-791.69,0.00039726,6]
[363863535,1748904656059,-460.0,0.00039726,6]
[363863536,1748904656069,-765.94,0.00039726,6]
[363863537,1748904656082,-356.98691749,0.00039726,6]
[363863538,1748904656092,-460.0,0.00039726,6]
[363863539,1748904656103,-711.627085,0.00039726,6]
[363863540,1748904656112,-200.0,0.00039762,2]
[363863541,1748904656122,-1000.0,0.0003978,2]
[363863542,1748904656132,-2000.0,0.0003978,3]
[363863543,1748904656142,-1100.0,0.000398,14]
[363863544,1748904656151,-150.0,0.00039815,7]
[363863545,1748904656161,-296.413,0.00039835,2]
[363863546,1748904656171,-158.57568237,0.00039876,2]
[363863547,1748904656182,-36026.082,0.0003988,2]
[363863548,1748904656192,-1000.0,0.0003988,2]
[363863549,1748904656201,-500.0,0.0003988,2]
[363863550,1748904656211,-3328.1,0.0003988,120]